fUSD/lending_fUSD_20250407
["ID","MTS","AMOUNT","RATE_DAILY","PERIOD"]
[357403321,1744047044871,-818.64,0.00044107,30]
[357403322,1744047044881,-528.51131798,0.00044107,30]
[357403323,1744047044892,-916.32,0.00044107,30]
[357403324,1744047044902,-500.0,0.00044107,30]
[357403325,1744047044911,-5571.213073,0.00044107,14]
[357403326,1744047044920,-5571.213073,0.00044107,14]
[357403327,1744047044930,-500.0,0.00044107,30]
[357403328,1744047044940,-681.31,0.00044107,30]
[357403329,1744047044949,-500.0,0.00044107,30]
[357403330,1744047044959,-500.0,0.00044107,30]
[357403331,1744047044968,-690.85,0.00044107,30]
[357403332,1744047044978,-1394.82,0.00044107,30]
[357403333,1744047044988,-151.0,0.00044107,14]
[357403334,1744047044997,-500.0,0.00044107,30]
[357403335,1744047045007,-546.09,0.00044107,30]
[357403336,1744047045016,-500.0,0.00044107,10]
[357403337,1744047045026,-1164.25,0.00044107,30]
[357403338,1744047045036,-1062.82,0.00044107,30]
[357403339,1744047045045,-595.93,0.00044107,30]
[357403340,1744047045055,-725.68,0.00044107,30]
[357403341,1744047045064,-500.0,0.00044107,8]
[357403342,1744047045074,-632.43,0.00044107,30]
[357403343,1744047045084,-501.98829718,0.00044107,30]
[357403344,1744047045093,-639.69,0.00044107,30]
[357403345,1744047045103,-586.2421258,0.00044107,30]
[357403346,1744047045112,-1159.6,0.00044107,30]
[357403347,1744047045122,-500.0,0.00044107,30]
[357403348,1744047045131,-500.0,0.00044107,30]
[357403349,1744047045141,-498.99894362,0.00044107,30]
[357403350,1744047045151,-942.88,0.00044107,30]
[357403351,1744047045160,-151.0,0.00044107,14]
[357403352,1744047045170,-500.0,0.00044107,30]
[357403353,1744047045180,-500.0,0.00044107,30]
[357403354,1744047045190,-731.04,0.00044107,30]
[357403355,1744047045199,-500.0,0.00044107,30]
[357403356,1744047045208,-500.0,0.00044107,2]
[357403357,1744047045218,-1588.38,0.00044107,30]
[357403358,1744047045227,-500.0,0.00044107,30]
[357403359,1744047045236,-500.0,0.00044108,30]
[357403360,1744047045246,-500.0,0.00044108,30]
[357403361,1744047045256,-500.0,0.00044108,30]
[357403362,1744047045266,-500.0,0.00044108,30]
[357403363,1744047045276,-500.0,0.00044108,30]
[357403364,1744047045285,-500.0,0.00044108,30]
[357403365,1744047045295,-204.97864344,0.00044108,30]
[357403366,1744047045304,-500.0,0.00044108,30]
[357403367,1744047045313,-500.0,0.00044108,30]
[357403368,1744047045488,-845.16,0.00044108,30]
[357403369,1744047045498,-438.60909909,0.00044108,30]
[357403370,1744047045508,-500.0,0.00044108,30]
[357403371,1744047045518,-500.0,0.00044108,30]
[357403372,1744047045527,-500.0,0.00044108,30]
[357403373,1744047045537,-645.47,0.00044108,30]
[357403374,1744047045546,-500.0,0.00044108,30]
[357403375,1744047045556,-535.3218932,0.00044108,30]
[357403376,1744047045566,-713.49,0.00044108,30]
[357403377,1744047045575,-500.0,0.00044108,30]
[357403378,1744047045585,-554.86764033,0.00044108,30]
[357403379,1744047045595,-887.14,0.00044108,30]
[357403380,1744047045604,-610.58843068,0.00044108,30]
[357403381,1744047045614,-500.0,0.00044108,30]
[357403382,1744047045623,-500.0,0.00044108,30]
[357403383,1744047045633,-305.32913684,0.00044108,30]
[357403384,1744047045644,-500.0,0.00044108,30]
[357403385,1744047045655,-500.0,0.00044108,30]
[357403386,1744047045664,-294.45529709,0.00044108,30]
[357403387,1744047045695,-205.54470291,0.00044108,30]
[357403388,1744047045704,-500.0,0.00044108,30]
[357403389,1744047045714,-1040.14661198,0.00044108,30]
[357403390,1744047045726,-7.08338802,0.00044108,30]
[357403391,1744047045736,-500.0,0.00044108,30]
[357403392,1744047045746,-511.60906716,0.00044108,30]
[357403393,1744047045755,-267.91676943,0.00044108,30]
[357403394,1744047045765,-500.0,0.00044108,30]
[357403395,1744047045775,-500.0,0.00044108,30]
[357403396,1744047045785,-500.0,0.00044108,30]
[357403397,1744047045794,-500.0,0.00044108,30]
[357403398,1744047045804,-500.0,0.00044108,30]
[357403399,1744047045813,-500.0,0.00044108,30]
[357403400,1744047045823,-172.71816453,0.00044108,30]
[357403401,1744047046292,-212.0,0.00042,2]
[357403403,1744047046302,-327.28183547,0.00044108,30]
[357403404,1744047046311,-500.0,0.00044108,30]
[357403406,1744047046321,-605.60140968,0.00044108,30]
[357403407,1744047046332,-500.0,0.00044108,30]
[357403409,1744047046342,-500.0,0.00044108,30]
[357403411,1744047046357,-557.55996474,0.00044108,30]
[357403413,1744047046367,-500.0,0.00044108,30]
[357403415,1744047046378,-500.0,0.00044108,30]
[357403416,1744047046387,-500.0,0.00044108,30]
[357403417,1744047046399,-500.0,0.00044108,30]
[357403418,1744047046408,-500.0,0.00044108,30]
[357403419,1744047046418,-500.0,0.00044108,30]
[357403420,1744047046430,-500.0,0.00044108,30]
[357403421,1744047046439,-500.0,0.00044108,30]
[357403422,1744047046448,-635.73,0.00044108,30]
[357403423,1744047046458,-505.82893613,0.00044108,30]
[357403424,1744047046467,-500.0,0.00044108,30]
[357403425,1744047046476,-531.51897416,0.00044108,30]
[357403426,1744047046485,-621.63,0.00044108,30]
[357403427,1744047046494,-500.0,0.00044108,30]
[357403428,1744047046503,-500.0,0.00044108,30]
[357403429,1744047046513,-500.0,0.00044108,30]
[357403430,1744047046523,-547.60553462,0.00044108,30]
[357403431,1744047046534,-500.0,0.00044108,30]
[357403432,1744047046543,-846.07,0.00044108,30]
[357403433,1744047046553,-500.0,0.00044108,30]
[357403434,1744047046563,-509.73975754,0.00044108,30]
[357403435,1744047046572,-506.12934983,0.00044108,30]
[357403436,1744047046581,-500.0,0.00044108,30]
[357403437,1744047046591,-500.0,0.00044108,30]
[357403438,1744047046600,-500.0,0.00044108,30]
[357403439,1744047046610,-500.0,0.00044108,30]
[357403440,1744047046619,-500.0,0.00044108,30]
[357403441,1744047046629,-500.0,0.00044108,30]
[357403442,1744047046639,-500.0,0.00044108,30]
[357403443,1744047046650,-500.0,0.00044108,30]
[357403444,1744047046659,-500.0,0.00044108,30]
[357403445,1744047046669,-500.0,0.00044108,30]
[357403446,1744047046678,-500.0,0.00044108,30]
[357403447,1744047046688,-500.0,0.00044108,30]
[357403448,1744047046697,-265.74,0.00044108,7]
[357403449,1744047046706,-500.0,0.00044108,30]
[357403450,1744047046714,-500.0,0.00044108,30]
[357403451,1744047046723,-500.0,0.00044108,30]
[357403452,1744047046732,-500.0,0.00044108,30]
[357403453,1744047046741,-564.95,0.00044108,30]
[357403455,1744047046749,-500.0,0.00044108,30]
[357403457,1744047046758,-552.2307825,0.00044108,30]
[357403459,1744047046768,-598.82886249,0.00044108,30]
[357403461,1744047046777,-500.0,0.00044108,30]
[357403463,1744047046786,-500.0,0.00044108,30]
[357403465,1744047046795,-500.0,0.00044108,30]
[357403467,1744047046803,-500.0,0.00044108,30]
[357403469,1744047046812,-500.0,0.00044108,30]
[357403470,1744047046821,-500.0,0.00044108,30]
[357403471,1744047046830,-500.0,0.00044108,30]
[357403472,1744047046838,-500.0,0.00044108,30]
[357403473,1744047046847,-1182.56,0.00044108,30]
[357403474,1744047046856,-2000.0,0.00044108,30]
[357403475,1744047046865,-500.0,0.00044108,30]
[357403476,1744047046874,-500.0,0.00044108,30]
[357403477,1744047046883,-1000.0,0.00044108,120]
[357403478,1744047046893,-500.0,0.00044108,30]
[357403479,1744047046902,-500.0,0.00044108,30]
[357403480,1744047046912,-500.0,0.00044108,30]
[357403481,1744047046921,-500.0,0.00044108,30]
[357403482,1744047046930,-500.0,0.00044108,30]
[357403483,1744047046939,-500.0,0.00044108,30]
[357403484,1744047046948,-500.0,0.00044108,30]
[357403485,1744047046958,-500.0,0.00044108,30]
[357403486,1744047046967,-500.0,0.00044108,30]
[357403488,1744047046976,-500.0,0.00044108,30]
[357403490,1744047046985,-500.0,0.00044108,30]
[357403491,1744047046994,-500.0,0.00044108,30]
[357403493,1744047047003,-500.0,0.00044108,30]
[357403495,1744047047013,-500.0,0.00044108,30]
[357403497,1744047047022,-500.0,0.00044108,30]
[357403499,1744047047032,-421.88229875,0.00044108,30]
[357403501,1744047047042,-500.0,0.00044108,30]
[357403504,1744047047052,-500.0,0.00044108,30]
[357403506,1744047047063,-500.0,0.00044108,30]
[357403508,1744047047075,-500.0,0.00044108,30]
[357403510,1744047047085,-500.0,0.00044108,30]
[357403512,1744047047095,-500.0,0.00044108,30]
[357403514,1744047047104,-500.0,0.00044108,30]
[357403516,1744047047114,-500.0,0.00044108,30]
[357403518,1744047047126,-500.0,0.00044108,30]
[357403520,1744047047135,-500.0,0.00044108,30]
[357403522,1744047047147,-500.0,0.00044108,30]
[357403524,1744047047156,-500.0,0.00044108,30]
[357403526,1744047047165,-500.0,0.00044108,30]
[357403528,1744047047173,-500.0,0.00044108,30]
[357403530,1744047047183,-500.0,0.00044108,30]
[357403532,1744047047192,-500.0,0.00044108,30]
[357403534,1744047047202,-500.0,0.00044108,30]
[357403536,1744047047211,-642.25,0.00044108,30]
[357403538,1744047047220,-500.0,0.00044108,30]
[357403539,1744047047229,-500.0,0.00044108,120]
[357403542,1744047047238,-500.0,0.00044108,30]
[357403543,1744047047247,-673.98,0.00044108,30]
[357403545,1744047047256,-500.0,0.00044108,30]
[357403547,1744047047265,-500.0,0.00044108,30]
[357403549,1744047047274,-500.0,0.00044108,30]
[357403551,1744047047283,-500.0,0.00044108,30]
[357403553,1744047047292,-1079.98,0.00044108,30]
[357403555,1744047047301,-151.55036028,0.00044108,30]
[357403557,1744047047311,-500.0,0.00044108,30]
[357403559,1744047047320,-500.0,0.00044108,30]
[357403561,1744047047331,-500.0,0.00044108,30]
[357403563,1744047047342,-217.80403106,0.00044108,30]
[357403565,1744047047352,-500.0,0.00044108,30]
[357403567,1744047047362,-500.0,0.00044108,30]
[357403569,1744047047371,-500.0,0.00044108,30]
[357403571,1744047047382,-500.0,0.00044108,30]
[357403573,1744047047393,-500.0,0.00044108,30]
[357403575,1744047047402,-477.09300086,0.00044108,30]
[357403577,1744047047413,-185.46536726,0.00044108,30]
[357403579,1744047047422,-555.97,0.00044108,5]
[357403581,1744047047431,-500.0,0.00044108,30]
[357403583,1744047047441,-500.0,0.00044108,30]
[357403585,1744047047450,-500.0,0.00044108,30]
[357403587,1744047047459,-519.69513572,0.00044108,30]
[357403589,1744047047469,-500.0,0.00044108,30]
[357403591,1744047047478,-689.73,0.00044108,30]
[357403593,1744047047487,-421.68567967,0.00044108,30]
[357403595,1744047047497,-500.0,0.00044108,30]
[357403597,1744047047506,-500.0,0.00044108,30]
[357403599,1744047047517,-541.18,0.00044108,30]
[357403601,1744047047527,-500.0,0.00044108,30]
[357403603,1744047047536,-500.0,0.00044108,30]
[357403605,1744047047546,-500.0,0.00044108,30]
[357403607,1744047047555,-500.0,0.00044108,30]
[357403609,1744047047564,-500.0,0.00044108,30]
[357403611,1744047047573,-500.0,0.00044108,30]
[357403613,1744047047583,-500.0,0.00044108,30]
[357403615,1744047047591,-500.0,0.00044108,30]
[357403617,1744047047601,-500.0,0.00044108,30]
[357403618,1744047047610,-500.0,0.00044108,30]
[357403620,1744047047620,-500.0,0.00044108,30]
[357403623,1744047047630,-500.0,0.00044108,30]
[357403624,1744047047640,-500.0,0.00044108,30]
[357403626,1744047047651,-500.0,0.00044108,30]
[357403628,1744047047660,-500.0,0.00044108,30]
[357403630,1744047047670,-500.0,0.00044108,30]
[357403632,1744047047679,-500.0,0.00044108,30]
[357403634,1744047047689,-500.0,0.00044108,30]
[357403636,1744047047698,-500.0,0.00044108,30]
[357403638,1744047047708,-500.0,0.00044108,30]
[357403640,1744047047717,-500.0,0.00044108,30]
[357403642,1744047047726,-500.0,0.00044108,30]
[357403660,1744047047893,-500.0,0.00044108,30]
[357403662,1744047047904,-500.0,0.00044108,30]
[357403664,1744047047913,-540.23120519,0.00044108,30]
[357403666,1744047047923,-532.41,0.00044108,30]
[357403668,1744047047932,-500.0,0.00044108,30]
[357403670,1744047047941,-500.0,0.00044108,30]
[357403672,1744047047950,-500.0,0.00044108,30]
[357403674,1744047047959,-500.0,0.00044108,30]
[357403676,1744047047969,-532.71926886,0.00044108,30]
[357403678,1744047047978,-500.0,0.00044108,30]
[357403680,1744047047988,-500.0,0.00044108,30]
[357403682,1744047047998,-500.0,0.00044108,30]
[357403684,1744047048007,-500.0,0.00044108,30]
[357403686,1744047048017,-500.0,0.00044108,30]
[357403688,1744047048026,-500.0,0.00044108,30]
[357403690,1744047048036,-518.78831405,0.00044108,30]
[357403692,1744047048045,-500.0,0.00044108,30]
[357403694,1744047048055,-500.0,0.00044108,30]
[357403696,1744047048064,-500.0,0.00044108,30]
[357403698,1744047048074,-500.0,0.00044108,30]
[357403700,1744047048083,-500.0,0.00044108,30]
[357403702,1744047048093,-500.0,0.00044108,30]
[357403704,1744047048102,-500.0,0.00044108,30]
[357403706,1744047048112,-500.0,0.00044108,30]
[357403708,1744047048121,-500.0,0.00044108,30]
[357403710,1744047048131,-500.0,0.00044108,30]
[357403712,1744047048143,-587.01441021,0.00044108,30]
[357403714,1744047048153,-500.0,0.00044108,30]
[357403716,1744047048165,-500.0,0.00044108,30]
[357403718,1744047048175,-840.1,0.00044108,30]
[357403720,1744047048185,-500.0,0.00044108,30]
[357403722,1744047048195,-500.0,0.00044108,30]
[357403724,1744047048205,-582.13457163,0.00044108,30]
[357403726,1744047048216,-500.0,0.00044108,30]
[357403728,1744047048226,-500.0,0.00044108,30]
[357403730,1744047048236,-500.0,0.00044108,30]
[357403732,1744047048246,-500.0,0.00044108,30]
[357403734,1744047048255,-500.0,0.00044108,30]
[357403736,1744047048265,-500.0,0.00044108,30]
[357403738,1744047048274,-500.0,0.00044108,30]
[357403740,1744047048283,-500.0,0.00044108,30]
[357403742,1744047048293,-519.02698692,0.00044108,30]
[357403744,1744047048302,-500.0,0.00044108,30]
[357403746,1744047048312,-500.0,0.00044108,30]
[357403748,1744047048321,-500.0,0.00044108,30]
[357403750,1744047048331,-500.0,0.00044108,30]
[357403752,1744047048341,-500.0,0.00044108,30]
[357403754,1744047048354,-500.0,0.00044108,30]
[357403756,1744047048363,-571.19,0.00044108,30]
[357403758,1744047048373,-500.0,0.00044108,30]
[357403760,1744047048383,-500.0,0.00044108,30]
[357403762,1744047048396,-500.0,0.00044108,30]
[357403764,1744047048406,-500.0,0.00044108,30]
[357403766,1744047048415,-500.0,0.00044108,30]
[357403768,1744047048429,-500.0,0.00044108,30]
[357403770,1744047048440,-500.0,0.00044108,30]
[357403772,1744047048449,-500.0,0.00044108,30]
[357403774,1744047048458,-500.0,0.00044108,30]
[357403776,1744047048468,-511.22083539,0.00044108,30]
[357403778,1744047048477,-500.0,0.00044108,30]
[357403780,1744047048487,-500.0,0.00044108,30]
[357403782,1744047048496,-500.0,0.00044108,30]
[357403784,1744047048505,-500.0,0.00044108,30]
[357403786,1744047048515,-500.0,0.00044108,30]
[357403788,1744047048524,-500.0,0.00044108,30]
[357403790,1744047048533,-795.31,0.00044108,30]
[357403792,1744047048542,-480.2264725,0.00044108,30]
[357403794,1744047048551,-500.0,0.00044108,30]
[357403796,1744047048560,-500.0,0.00044108,30]
[357403798,1744047048569,-500.0,0.00044108,30]
[357403800,1744047048578,-286.13553557,0.00044108,30]
[357403802,1744047048588,-500.0,0.00044108,30]
[357403804,1744047048597,-596.58854627,0.00044108,30]
[357403806,1744047048606,-151.0,0.00044108,14]
[357403808,1744047048615,-500.0,0.00044108,30]
[357403810,1744047048624,-500.0,0.00044108,30]
[357403812,1744047048634,-194.93215,0.00044108,14]
[357403813,1744047048645,-507.16,0.00044108,30]
[357403815,1744047048654,-586.72,0.00044108,30]
[357403817,1744047048663,-500.0,0.00044108,30]
[357403819,1744047048672,-512.74635877,0.00044108,30]
[357403821,1744047048682,-500.0,0.00044108,30]
[357403823,1744047048692,-500.0,0.00044108,30]
[357403825,1744047048702,-500.0,0.00044108,30]
[357403827,1744047048711,-500.0,0.00044108,30]
[357403829,1744047048720,-526.75,0.00044108,30]
[357403831,1744047048730,-152.751073,0.00044108,14]
[357403833,1744047048739,-500.0,0.00044108,30]
[357403835,1744047048749,-500.0,0.00044108,30]
[357403837,1744047048758,-862.9,0.00044108,30]
[357403839,1744047048768,-500.0,0.00044108,30]
[357403841,1744047048777,-500.0,0.00044108,30]
[357403843,1744047048787,-500.0,0.00044108,30]
[357403845,1744047048796,-589.23,0.00044108,30]
[357403847,1744047048805,-500.0,0.00044108,30]
[357403849,1744047048814,-500.0,0.00044108,30]
[357403851,1744047048825,-500.0,0.00044108,30]
[357403853,1744047048834,-566.22,0.00044108,30]
[357403855,1744047048843,-500.0,0.00044108,30]
[357403857,1744047048852,-500.0,0.00044108,30]
[357403859,1744047048861,-500.0,0.00044108,30]
[357403861,1744047048870,-521.77,0.00044108,30]
[357403863,1744047048879,-151.0,0.00044108,14]
[357403865,1744047048888,-151.0,0.00044108,14]
[357403867,1744047048898,-595.42,0.00044108,30]
[357403869,1744047048908,-582.67,0.00044108,30]
[357403871,1744047048917,-500.0,0.00044108,30]
[357403873,1744047048927,-500.0,0.00044108,30]
[357403875,1744047048936,-500.0,0.00044108,30]
[357403877,1744047048945,-978.63,0.00044108,30]
[357403879,1744047048954,-500.0,0.00044108,30]
[357403881,1744047048964,-500.0,0.00044108,30]
[357403883,1744047048973,-508.10798838,0.00044108,30]
[357403885,1744047048989,-500.0,0.00044108,30]
[357403888,1744047048998,-500.0,0.00044108,30]
[357403890,1744047049008,-500.0,0.00044108,30]
[357403891,1744047049017,-500.0,0.00044108,30]
[357403894,1744047049027,-1559.75,0.00044108,30]
[357403895,1744047049037,-500.0,0.00044108,30]
[357403898,1744047049047,-540.17804119,0.00044108,30]
[357403899,1744047049056,-556.0003383,0.00044108,30]
[357403901,1744047049065,-684.44,0.00044108,30]
[357403904,1744047049075,-500.0,0.00044108,30]
[357403905,1744047049084,-500.0,0.00044108,30]
[357403907,1744047049093,-500.0,0.00044108,30]
[357403909,1744047049102,-1378.67,0.00044108,30]
[357403911,1744047049111,-500.0,0.00044108,30]
[357403913,1744047049120,-126253.56,0.00044108,7]
[357403915,1744047049130,-537.74623911,0.00044108,30]
[357403917,1744047049141,-500.0,0.00044108,30]
[357403920,1744047049151,-500.0,0.00044108,30]
[357403921,1744047049160,-715.78,0.00044108,30]
[357403923,1744047049170,-500.0,0.00044108,30]
[357403926,1744047049181,-500.0,0.00044108,30]
[357403928,1744047049190,-151.0,0.00044108,14]
[357403930,1744047049200,-983.07,0.00044108,30]
[357403931,1744047049210,-151.0,0.00044108,14]
[357403933,1744047049219,-500.0,0.00044108,30]
[357403936,1744047049236,-500.0,0.00044108,30]
[357403938,1744047049246,-300.54363557,0.00044108,30]
[357403941,1744047049265,-228.53636443,0.00044108,30]
[357403943,1744047049274,-391.46363557,0.00044108,30]
[357403946,1744047049286,-108.53636443,0.00044108,30]
[357403948,1744047049295,-500.0,0.00044108,30]
[357403949,1744047049304,-500.0,0.00044108,30]
[357403951,1744047049313,-500.0,0.00044108,30]
[357403953,1744047049323,-621.52753532,0.00044108,30]
[357403955,1744047049336,-500.0,0.00044108,30]
[357403957,1744047049345,-749.58,0.00044108,30]
[357403960,1744047049355,-438.5148432,0.00044108,30]
[357403962,1744047049371,-76.16986787,0.00044108,30]
[357403964,1744047049380,-1103.83,0.00044108,30]
[357403966,1744047049389,-500.0,0.00044108,30]
[357403968,1744047049400,-517.30131206,0.00044108,30]
[357403970,1744047049410,-500.0,0.00044108,30]
[357403972,1744047049421,-551.17,0.00044108,30]
[357403974,1744047049431,-500.0,0.00044108,30]
[357403976,1744047049440,-248.5288195,0.00044108,30]
[357403978,1744047049452,-251.4711805,0.00044108,30]
[357403980,1744047049462,-500.0,0.00044108,30]
[357403982,1744047049471,-500.0,0.00044108,30]
[357403984,1744047049480,-500.0,0.00044108,30]
[357403986,1744047049489,-796.0588195,0.00044108,30]
[357403988,1744047049501,-2763.9611805,0.00044108,30]
[357403990,1744047049510,-500.0,0.00044108,30]
[357403992,1744047049519,-320.2188035,0.00044108,14]
[357403995,1744047049531,-5250.9942695,0.00044108,14]
[357403997,1744047049541,-500.0,0.00044108,30]
[357403999,1744047049551,-500.0,0.00044108,30]
[357404001,1744047049560,-5571.213073,0.00044108,14]
[357404003,1744047049570,-500.0,0.00044108,30]
[357404005,1744047049579,-500.0,0.00044108,30]
[357404007,1744047049587,-500.0,0.00044108,30]
[357404009,1744047049597,-500.0,0.00044108,30]
[357404011,1744047049606,-2233.92,0.00044108,30]
[357404012,1744047049615,-500.0,0.00044108,30]
[357404014,1744047049624,-500.0,0.00044108,30]
[357404016,1744047049634,-500.0,0.00044108,30]
[357404018,1744047049645,-500.0,0.00044108,30]
[357404020,1744047049654,-1730.72,0.00044108,30]
[357404022,1744047049663,-500.0,0.00044108,30]
[357404024,1744047049672,-500.0,0.00044108,30]
[357404026,1744047049682,-500.0,0.00044108,30]
[357404028,1744047049691,-1120.44,0.00044108,120]
[357404031,1744047049701,-500.0,0.00044108,30]
[357404032,1744047049710,-1455.51,0.00044108,30]
[357404034,1744047049719,-585.48765425,0.00044108,30]
[357404037,1744047049729,-1000.0,0.00044108,30]
[357404039,1744047049739,-500.0,0.00044108,30]
[357404040,1744047049749,-500.0,0.00044108,30]
[357404043,1744047049759,-500.0,0.00044108,30]
[357404045,1744047049769,-500.0,0.00044108,30]
[357404047,1744047049778,-4792.87,0.00044108,30]
[357404048,1744047049788,-604.01,0.00044108,30]
[357404050,1744047049797,-500.0,0.00044108,30]
[357404052,1744047049805,-500.0,0.00044108,30]
[357404054,1744047049815,-505.73,0.00044108,30]
[357404056,1744047049824,-804.46,0.00044108,30]
[357404059,1744047049835,-524.81155393,0.00044108,30]
[357404060,1744047049844,-500.0,0.00044108,30]
[357404062,1744047049854,-500.0,0.00044108,30]
[357404064,1744047049864,-500.0,0.00044108,30]
[357404066,1744047049873,-584.57,0.00044108,30]
[357404068,1744047049882,-500.0,0.00044108,30]
[357404070,1744047049893,-500.0,0.00044108,30]
[357404073,1744047049903,-500.0,0.00044108,30]
[357404074,1744047049912,-151.0,0.00044108,14]
[357404076,1744047049921,-922.41,0.00044108,30]
[357404078,1744047049930,-500.0,0.00044108,30]
[357404080,1744047049939,-500.0,0.00044108,30]
[357404082,1744047049948,-500.0,0.00044108,30]
[357404084,1744047049958,-151.0,0.00044108,14]
[357404086,1744047049967,-500.0,0.00044108,30]
[357404088,1744047049976,-500.0,0.00044108,30]
[357404090,1744047049985,-500.0,0.00044108,30]
[357404092,1744047049994,-505.15398767,0.00044108,30]
[357404107,1744047050156,-500.0,0.00044108,30]
[357404108,1744047050166,-11454.82,0.00044108,30]
[357404109,1744047050175,-500.0,0.00044108,30]
[357404110,1744047050185,-500.0,0.00044109,30]
[357404111,1744047050193,-500.0,0.00044109,30]
[357404112,1744047050202,-525.2,0.00044109,30]
[357404113,1744047050215,-151.0,0.00044109,14]
[357404114,1744047050224,-151.0,0.00044109,14]
[357404115,1744047050233,-151.0,0.00044109,14]
[357404116,1744047050242,-267.957047,0.00044109,14]
[357404117,1744047050251,-267.957047,0.00044109,14]
[357404118,1744047050260,-151.0,0.00044109,14]
[357404119,1744047050269,-151.0,0.00044109,14]
[357404120,1744047050279,-151.0,0.00044109,14]
[357404121,1744047050288,-151.0,0.00044109,14]
[357404123,1744047050297,-1699.11,0.00044109,30]
[357404125,1744047050306,-151.0,0.00044109,14]
[357404127,1744047050315,-904.37,0.00044109,30]
[357404129,1744047050324,-151.252334,0.00044109,14]
[357404131,1744047050333,-151.0,0.00044109,14]
[357404133,1744047050344,-151.252334,0.00044109,14]
[357404135,1744047050354,-158.263522,0.00044109,14]
[357404137,1744047050363,-726.15,0.00044109,30]
[357404139,1744047050372,-628.77,0.00044109,30]
[357404141,1744047050381,-651.56,0.00044109,30]
[357404142,1744047050391,-1184.34,0.00044109,30]
[357404145,1744047050401,-1127.23,0.00044109,30]
[357404146,1744047050410,-1233.76,0.00044109,30]
[357404148,1744047050419,-500.0,0.00044109,30]
[357404150,1744047050428,-2599.08,0.00044109,30]
[357404153,1744047050439,-5571.213073,0.00044109,14]
[357404154,1744047050448,-5571.213073,0.00044109,14]
[357404156,1744047050457,-1153.27,0.00044109,30]
[357404158,1744047050466,-907.08,0.00044109,30]
[357404160,1744047050475,-1433.48,0.00044109,30]
[357404162,1744047050485,-500.0,0.00044109,30]
[357404164,1744047050494,-1994.35,0.00044109,30]
[357404166,1744047050503,-746.92,0.00044109,30]
[357404168,1744047050513,-1083.82,0.00044109,30]
[357404170,1744047050522,-500.0,0.00044109,30]
[357404172,1744047050531,-500.0,0.00044109,30]
[357404174,1744047050541,-1672.83,0.00044109,30]
[357404176,1744047050550,-880.11,0.00044109,30]
[357404178,1744047050559,-500.0,0.00044109,30]
[357404180,1744047050568,-500.0,0.00044109,30]
[357404182,1744047050577,-500.0,0.00044109,30]
[357404184,1744047050586,-1179.19,0.00044109,30]
[357404186,1744047050595,-500.0,0.00044109,30]
[357404188,1744047050604,-1331.6,0.00044109,30]
[357404190,1744047050614,-151.0,0.00044109,14]
[357404192,1744047050623,-500.0,0.00044109,30]
[357404194,1744047050632,-500.0,0.00044109,30]
[357404196,1744047050643,-844.77,0.00044109,30]